fUSD/lending_fUSD_20260505
["ID","MTS","AMOUNT","RATE_DAILY","PERIOD"]
[421587445,1777935033000,-4346.64478577,0.00014865,2]
[421587449,1777935033000,-5762.26302823,0.000149,2]
[421587450,1777935033000,-200.0,0.000149,5]
[421587452,1777935033000,-1514.30877344,0.000149,2]
[421587451,1777935033000,-4346.64478577,0.000149,2]
[421587454,1777935033000,-851.41733285,0.000149,2]
[421587453,1777935033000,-204.15591681,0.000149,2]
[421587458,1777935033000,-180.42,0.00014963,2]
[421587455,1777935033000,-8664.48377454,0.000149,2]
[421587457,1777935033000,-8006.0,0.00014959,2]
[421587456,1777935033000,-200.0,0.00014918,2]
[421587460,1777935033000,-500.0,0.00014973,2]
[421587459,1777935033000,-500.38926088,0.00014973,2]
[421587461,1777935033000,-500.0,0.00014973,2]
[421587463,1777935033000,-500.0,0.00014973,2]
[421587462,1777935033000,-500.0,0.00014973,2]
[421587464,1777935033000,-500.0,0.00014973,2]
[421587411,1777935033000,-5762.26302823,0.00014688,2]
[421587467,1777935033000,-500.0,0.00014973,2]
[421587466,1777935033000,-172.20009306,0.00014973,2]
[421587468,1777935033000,-500.82170978,0.00014973,2]
[421587472,1777935033000,-155.0,0.00014999,2]
[421587465,1777935033000,-500.0,0.00014973,2]
[421587471,1777935033000,-164.1108,0.00014999,2]
[421587469,1777935033000,-4000.0,0.00014974,2]
[421587448,1777935033000,-208.40443353,0.000149,2]
[421587439,1777935033000,-3739.48,0.00014803,2]
[421587470,1777935033000,-172.14,0.00014997,2]
[421587442,1777935033000,-4346.64478577,0.00014831,2]
[421587443,1777935033000,-168.83,0.00014835,2]
[421587413,1777935033000,-1100.0,0.000147,5]
[421587415,1777935033000,-647.113405,0.000147,2]
[421587416,1777935033000,-354.339054,0.000147,2]
[421587414,1777935033000,-561.115182,0.000147,2]
[421587422,1777935033000,-5762.26302823,0.00014741,2]
[421587421,1777935033000,-155.57864444,0.00014731,2]
[421587420,1777935033000,-4346.64478577,0.00014727,2]
[421587419,1777935033000,-5762.26302823,0.00014714,2]
[421587418,1777935033000,-611.675213,0.000147,2]
[421587424,1777935033000,-5762.26302823,0.00014767,2]
[421587425,1777935033000,-200.0,0.0001477,2]
[421587426,1777935033000,-500.0,0.0001477,2]
[421587427,1777935033000,-200.0,0.0001477,2]
[421587423,1777935033000,-4346.64478577,0.00014761,2]
[421587428,1777935033000,-84108.03631427,0.0001477,2]
[421587446,1777935033000,-668.0,0.00014867,5]
[421587441,1777935033000,-255.0,0.00014821,2]
[421587429,1777935033000,-506.58951316,0.00014773,2]
[421587438,1777935033000,-599.19,0.00014803,2]
[421587437,1777935033000,-507.71,0.00014803,2]
[421587436,1777935033000,-1400.0,0.000148,5]
[421587440,1777935033000,-5762.26302823,0.0001482,2]
[421587434,1777935033000,-532.0,0.000148,5]
[421587435,1777935033000,-150.0,0.000148,2]
[421587430,1777935033000,-200.0,0.00014781,2]
[421587432,1777935033000,-5762.26302823,0.00014794,2]
[421587431,1777935033000,-708.0,0.0001479,5]
[421587433,1777935033000,-4346.64478577,0.00014796,2]
[421587485,1777935034000,-1254.41808677,0.00015,2]
[421587473,1777935034000,-1000.0,0.00014999,2]
[421587475,1777935034000,-1000.0,0.00014999,2]
[421587474,1777935034000,-1000.0,0.00014999,2]
[421587476,1777935034000,-539.11263333,0.00014999,2]
[421587479,1777935034000,-1268977.7054853,0.00015,2]
[421587480,1777935034000,-83957.86768424,0.00015,2]
[421587478,1777935034000,-300.0,0.00014999,2]
[421587481,1777935034000,-562.78,0.00015,2]
[421587477,1777935034000,-235.2899804,0.00014999,2]
[421587489,1777935034000,-6226.43661,0.00015,2]
[421587483,1777935034000,-147737.40966093,0.00015,2]
[421587484,1777935034000,-26726.88591572,0.00015,2]
[421587486,1777935034000,-672.61935453,0.00015,2]
[421587487,1777935034000,-12459.82282015,0.00015,2]
[421587490,1777935034000,-480867.99999999,0.00015,2]
[421587491,1777935034000,-1711.59719033,0.00015,2]
[421587493,1777935034000,-5493.50220405,0.00015,2]
[421587492,1777935034000,-351.5299975,0.00015,2]
[421587488,1777935034000,-19689.57241436,0.00015,2]
[421587494,1777935034000,-440.0,0.00015,2]
[421587482,1777935034000,-128018.04627867,0.00015,2]
[421587501,1777935037000,-20633.75612776,0.00015,2]
[421587503,1777935037000,-1644.87979929,0.00015,2]
[421587500,1777935037000,-322.08186498,0.000149,2]
[421587502,1777935037000,-1000.73875793,0.00015,2]
[421587504,1777935037000,-2098.95,0.00015,2]
[421587506,1777935037000,-1513.16049576,0.00015,2]
[421587507,1777935037000,-9346.62959513,0.00015,2]
[421587508,1777935037000,-4934.206548,0.00015,2]
[421587509,1777935037000,-796.55986639,0.00015,2]
[421587510,1777935037000,-3596.22805072,0.00015,2]
[421587505,1777935037000,-4810.94195086,0.00015,2]
[421587514,1777935039000,-1819.1209591,0.00015,2]
[421587513,1777935039000,-83231.823612,0.00015,2]
[421587515,1777935039000,-36884.8876836,0.00015,2]
[421587517,1777935039000,-390.204,0.00015,2]
[421587518,1777935039000,-972.98655423,0.00015,2]
[421587519,1777935039000,-1012.13922078,0.00015,2]
[421587516,1777935039000,-475.80353924,0.00015,2]
[421587522,1777935040000,-1122.30070528,0.00015,2]
[421587520,1777935040000,-159923.13314586,0.00015,2]
[421587521,1777935040000,-16337.6022456,0.00015,2]
[421587523,1777935040000,-1135.96567531,0.00015,2]
[421587528,1777935040000,-504.28224,0.00015,2]
[421587525,1777935040000,-19098.56991262,0.00015,2]
[421587526,1777935040000,-2160.99224112,0.00015,2]
[421587527,1777935040000,-2595.95868002,0.00015,2]
[421587524,1777935040000,-2316.90688967,0.00015,2]
[421587538,1777935042000,-3463.18377803,0.00015,2]
[421587540,1777935042000,-8211.86041209,0.00015,2]
[421587539,1777935042000,-510.13958758,0.00015,2]
[421587541,1777935042000,-4051.58577808,0.00015,2]
[421587543,1777935042000,-5700.45216036,0.00015,2]
[421587542,1777935042000,-341.04,0.00015,2]
[421587546,1777935043000,-16.36668277,0.00015,2]
[421587547,1777935043000,-1393.35230476,0.00015,2]
[421587544,1777935043000,-3539.01945384,0.00015,2]
[421587545,1777935043000,-500.0,0.00015,2]
[421587558,1777935046000,-494.61771879,0.00015,2]
[421587556,1777935046000,-4608.67470744,0.00015,2]
[421587557,1777935046000,-22462.32695369,0.00015,2]
[421587562,1777935046000,-65000.0,0.00015,2]
[421587560,1777935046000,-39101.34391089,0.00015,2]
[421587561,1777935046000,-123.36401305,0.00015,2]
[421587563,1777935046000,-86339.98849986,0.00015,2]
[421587559,1777935046000,-651.98542784,0.00015,2]
[421587597,1777935202000,-4024.0,0.00013686,2]
[421587598,1777935204000,4000.00000001,0.00030137,120]
[421587604,1777935329000,-500.0,0.00013685,2]
[421587601,1777935329000,-626.12354178,0.00013685,2]
[421587602,1777935329000,-500.0,0.00013685,2]
[421587603,1777935329000,-500.0,0.00013685,2]
[421587600,1777935329000,-1200.0,0.00013684,2]
[421587605,1777935329000,-500.0,0.00013685,2]
[421587599,1777935329000,-479.0,0.00013684,2]
[421587607,1777935329000,-193.32902385,0.00013685,2]
[421587608,1777935329000,-500.0,0.00013685,2]
[421587610,1777935329000,-186.92820836,0.00013685,2]
[421587609,1777935329000,-173.42997096,0.00013685,2]
[421587611,1777935329000,-187.10653447,0.00013685,2]
[421587612,1777935329000,-150.0,0.00013685,2]
[421587613,1777935329000,-11294.08272058,0.00013686,2]
[421587606,1777935329000,-500.0,0.00013685,2]
[421587614,1777935418000,-2750.0,0.00013599,2]
[421587616,1777935868000,186.82,6.553e-05,2]
[421587617,1777935929000,302.233083,0.00028852,120]
[421587620,1777936231000,-288.44951876,0.00012304,2]
[421587621,1777936231000,-54.87371442,0.00012304,2]
[421587623,1777936231000,-150.0,0.00012304,2]
[421587624,1777936231000,-150.0,0.00012304,2]
[421587625,1777936231000,-150.0,0.00012578,2]
[421587626,1777936231000,-194.89165298,0.00012769,2]
[421587628,1777936231000,-249.41553111,0.0001279,2]
[421587627,1777936231000,-511.11834702,0.00012769,2]
[421587622,1777936231000,-95.12628558,0.00012304,2]
[421587648,1777936237000,-394.12381061,0.0001279,2]
[421587649,1777936237000,-289.68065828,0.0001279,2]
[421587653,1777936238000,-534.124359,0.00012917,2]
[421587652,1777936238000,-280.79182922,0.00012917,2]
[421587651,1777936238000,-139.56633078,0.00012851,2]
[421587650,1777936238000,-10.43366922,0.00012851,2]
[421587654,1777936238000,-1185.08381178,0.00012917,2]
[421587655,1777936238000,-123.83193254,0.00013024,2]
[421587661,1777936238000,-615.911,0.00013314,2]
[421587656,1777936238000,-108.31073942,0.00013024,2]
[421587659,1777936238000,-872.79494258,0.00013313,2]
[421587660,1777936238000,-175.8429873,0.00013314,2]
[421587658,1777936238000,-327.20505742,0.00013313,2]
[421587662,1777936238000,-78.99736284,0.00013398,2]
[421587657,1777936238000,-150.0,0.00013124,2]
[421587675,1777936240000,-16181.88729815,0.00013586,2]
[421587664,1777936240000,-300.0,0.00013496,2]
[421587663,1777936240000,-71.00263716,0.00013398,2]
[421587665,1777936240000,-443.1846846,0.00013498,2]
[421587666,1777936240000,-2482.70340158,0.00013537,2]
[421587667,1777936240000,-2560.80399459,0.00013537,2]
[421587668,1777936240000,-471.40097967,0.00013585,2]
[421587676,1777936240000,-16941.20800185,0.00013586,2]
[421587674,1777936240000,-150.0,0.00013585,2]
[421587677,1777936240000,-1434.4731,0.00013586,2]
[421587672,1777936240000,-155.0,0.00013585,2]
[421587670,1777936240000,-438.28647925,0.00013585,2]
[421587696,1777936240000,-2912.30163108,0.00013586,2]
[421587671,1777936240000,-299.25878043,0.00013585,2]
[421587673,1777936240000,-150.0,0.00013585,2]
[421587678,1777936240000,-164941.62038135,0.00013586,2]
[421587679,1777936240000,-625.5538693,0.00013586,2]
[421587680,1777936240000,-2207.9953582,0.00013586,2]
[421587681,1777936240000,-1146.14487777,0.00013586,2]
[421587699,1777936240000,-9049.90914342,0.00013586,2]
[421587669,1777936240000,-217.97174457,0.00013585,2]
[421587724,1777936242000,-3271.88970174,0.00013586,2]
[421587727,1777936243000,-172.29902819,0.00013586,2]
[421587726,1777936243000,-34804.91699642,0.00013586,2]
[421587725,1777936243000,-581368.45721417,0.00013586,2]
[421587731,1777936246000,-57740.4330379,0.00013586,2]
[421587732,1777936246000,-11308.50907733,0.00013586,2]
[421587733,1777936246000,-450.40932277,0.00013586,2]
[421587734,1777936246000,-309.08403459,0.00013586,2]
[421587739,1777936700000,155.55,8.717e-05,2]
[421587738,1777936700000,155.55,6.538e-05,2]
[421587742,1777936703000,622.07,0.00027399,120]
[421587741,1777936703000,622.07,0.00027399,120]
[421587740,1777936703000,622.07,0.00027399,120]
[421587744,1777936704000,622.1,0.00027399,120]
[421587743,1777936704000,622.07,0.00027399,120]
[421587750,1777937304000,944.86906178,0.000209,30]
[421587752,1777937359000,-537.27409855,0.00011,2]
[421587751,1777937359000,-155.55,0.00010896,2]
[421587753,1777937384000,354.44,0.00029452,120]
[421587763,1777937432000,-164.79561381,0.00011986,2]
[421587762,1777937432000,-185.15504307,0.00011441,2]
[421587764,1777937432000,-811.93549364,0.0001199,2]
[421587761,1777937432000,-575.19163535,0.00011,2]
[421587765,1777937432000,-296.62484155,0.00012,2]
[421587768,1777937432000,-36464.07651031,0.00012,2]
[421587770,1777937432000,-258511.92405286,0.00012,2]
[421587766,1777937432000,-168153.83653533,0.00012,2]
[421587801,1777937438000,-200.0,0.00013393,2]
[421587803,1777937438000,-2893.37020646,0.00013481,2]
[421587800,1777937438000,-733.319,0.00013383,2]
[421587804,1777937438000,-6769.5723973,0.00013481,2]
[421587802,1777937438000,-789.80024411,0.00013481,2]
[421587805,1777937438000,-39073.61218855,0.00013481,2]
[421587807,1777937438000,-150.0,0.00013488,2]
[421587808,1777937438000,-150.0,0.00013488,2]
[421587810,1777937438000,-150.0,0.00013488,2]
[421587809,1777937438000,-150.0,0.00013488,2]
[421587813,1777937438000,-3404.16,0.00013509,2]
[421587816,1777937438000,-151.0,0.00013578,2]
[421587811,1777937438000,-150.0,0.00013488,2]
[421587815,1777937438000,-811.93549364,0.00013571,2]
[421587806,1777937438000,-150.0,0.00013488,2]
[421587799,1777937438000,-420.0,0.0001335,2]
[421587796,1777937438000,-2000.0,0.0001298,2]
[421587797,1777937438000,-155.55,0.00013075,2]
[421587814,1777937438000,-413.94,0.00013562,2]
[421587783,1777937438000,-696.40112496,0.00012,2]
[421587784,1777937438000,-84065.11688389,0.00012,2]
[421587785,1777937438000,-2343456.79923072,0.00012,2]
[421587786,1777937438000,-210.3800907,0.00012208,2]
[421587787,1777937438000,-388.94837523,0.00012308,2]
[421587798,1777937438000,-3404.16,0.00013187,2]
[421587789,1777937438000,-1200.0,0.00012576,2]
[421587792,1777937438000,-3404.16,0.00012866,2]
[421587791,1777937438000,-300.0,0.00012865,2]
[421587788,1777937438000,-970.64,0.00012503,2]
[421587794,1777937438000,-1852.42,0.00012914,2]
[421587793,1777937438000,-150.0,0.00012913,2]
[421587795,1777937438000,-29999.99,0.00012914,2]
[421587790,1777937438000,-653.85,0.00012577,2]
[421587812,1777937438000,-150.0,0.00013488,2]
[421587841,1777937438000,-162.75736402,0.00013698,2]
[421587817,1777937438000,-151.0,0.00013578,2]
[421587837,1777937438000,-507.47446226,0.00013698,2]
[421587840,1777937438000,-500.0,0.00013698,2]
[421587838,1777937438000,-500.0,0.00013698,2]
[421587839,1777937438000,-500.0,0.00013698,2]
[421587844,1777937438000,-500.0,0.00013698,2]
[421587845,1777937438000,-500.0,0.00013698,2]
[421587836,1777937438000,-411.49853842,0.00013673,2]
[421587842,1777937438000,-500.0,0.00013698,2]
[421587847,1777937438000,-500.0,0.00013698,2]
[421587848,1777937438000,-622.07,0.00013698,2]
[421587846,1777937438000,-500.0,0.00013698,2]
[421587849,1777937438000,-622.07,0.00013698,2]
[421587850,1777937438000,-622.07,0.00013698,2]
[421587818,1777937438000,-151.0,0.00013578,2]
[421587843,1777937438000,-500.0,0.00013698,2]
[421587835,1777937438000,-500.0,0.00013673,2]
[421587851,1777937438000,-622.07,0.00013698,2]
[421587834,1777937438000,-500.75597371,0.00013673,2]
[421587833,1777937438000,-150.0,0.00013654,2]
[421587819,1777937438000,-150.0,0.0001358,2]
[421587822,1777937438000,-247655.4566374,0.00013581,2]
[421587821,1777937438000,-8359.6295173,0.00013581,2]
[421587824,1777937438000,-1307.8552832,0.00013581,2]
[421587823,1777937438000,-2904.1440062,0.00013581,2]
[421587826,1777937438000,-970.2933709,0.00013581,2]
[421587820,1777937438000,-907437.9729846,0.00013581,2]
[421587825,1777937438000,-970.5163807,0.00013581,2]
[421587830,1777937438000,-230.29,0.00013637,2]
[421587828,1777937438000,-258.90957484,0.00013583,2]
[421587829,1777937438000,-250.0,0.00013588,2]
[421587831,1777937438000,-2893.37020641,0.00013639,2]
[421587832,1777937438000,-39073.61218855,0.00013639,2]
[421587827,1777937438000,-151.0,0.00013583,2]
[421587898,1777937439000,-500.0,0.00013698,2]
[421587897,1777937439000,-500.0,0.00013698,2]
[421587896,1777937439000,-500.0,0.00013698,2]
[421587895,1777937439000,-500.0,0.00013698,2]
[421587892,1777937439000,-500.0,0.00013698,2]
[421587891,1777937439000,-500.0,0.00013698,2]
[421587893,1777937439000,-500.0,0.00013698,2]
[421587890,1777937439000,-500.0,0.00013698,2]
[421587888,1777937439000,-500.0,0.00013698,2]
[421587889,1777937439000,-500.0,0.00013698,2]
[421587899,1777937439000,-500.0,0.00013698,2]
[421587884,1777937439000,-500.0,0.00013698,2]
[421587886,1777937439000,-500.0,0.00013698,2]
[421587887,1777937439000,-500.0,0.00013698,2]
[421587905,1777937439000,-500.0,0.00013698,2]
[421587900,1777937439000,-500.0,0.00013698,2]
[421587902,1777937439000,-500.0,0.00013698,2]
[421587903,1777937439000,-500.0,0.00013698,2]
[421587906,1777937439000,-500.0,0.00013698,2]
[421587904,1777937439000,-500.0,0.00013698,2]
[421587909,1777937439000,-500.0,0.00013698,2]
[421587908,1777937439000,-500.0,0.00013698,2]
[421587907,1777937439000,-500.0,0.00013698,2]
[421587910,1777937439000,-500.0,0.00013698,2]
[421587912,1777937439000,-606.44,0.00013698,2]
[421587911,1777937439000,-637.15,0.00013698,2]
[421587913,1777937439000,-606.44,0.00013698,2]
[421587883,1777937439000,-500.0,0.00013698,2]
[421587916,1777937439000,-606.44,0.00013698,2]
[421587901,1777937439000,-500.0,0.00013698,2]
[421587885,1777937439000,-500.0,0.00013698,2]
[421587863,1777937439000,-500.0,0.00013698,2]
[421587880,1777937439000,-500.0,0.00013698,2]
[421587914,1777937439000,-606.44,0.00013698,2]
[421587853,1777937439000,-622.07,0.00013698,2]
[421587854,1777937439000,-557.28,0.00013698,2]
[421587852,1777937439000,-622.07,0.00013698,2]
[421587858,1777937439000,-557.28,0.00013698,2]
[421587857,1777937439000,-557.28,0.00013698,2]
[421587855,1777937439000,-557.28,0.00013698,2]
[421587856,1777937439000,-557.28,0.00013698,2]
[421587859,1777937439000,-557.28,0.00013698,2]
[421587860,1777937439000,-500.0,0.00013698,2]
[421587861,1777937439000,-500.0,0.00013698,2]
[421587862,1777937439000,-500.0,0.00013698,2]
[421587868,1777937439000,-500.0,0.00013698,2]
[421587865,1777937439000,-500.0,0.00013698,2]
[421587864,1777937439000,-500.0,0.00013698,2]
[421587866,1777937439000,-500.0,0.00013698,2]
[421587867,1777937439000,-500.0,0.00013698,2]
[421587870,1777937439000,-500.0,0.00013698,2]
[421587869,1777937439000,-500.0,0.00013698,2]
[421587872,1777937439000,-500.0,0.00013698,2]
[421587871,1777937439000,-500.0,0.00013698,2]
[421587873,1777937439000,-500.0,0.00013698,2]
[421587874,1777937439000,-500.0,0.00013698,2]
[421587875,1777937439000,-500.0,0.00013698,2]
[421587878,1777937439000,-500.0,0.00013698,2]
[421587877,1777937439000,-500.0,0.00013698,2]
[421587881,1777937439000,-500.0,0.00013698,2]
[421587882,1777937439000,-500.0,0.00013698,2]
[421587876,1777937439000,-500.0,0.00013698,2]
[421587879,1777937439000,-500.0,0.00013698,2]
[421587915,1777937439000,-606.44,0.00013698,2]
[421587894,1777937439000,-500.0,0.00013698,2]
[421587920,1777937439000,-500.0,0.00013698,2]
[421587951,1777937439000,-500.0,0.00013698,2]
[421587953,1777937439000,-500.0,0.00013698,2]
[421587957,1777937439000,-500.0,0.00013698,2]
[421587954,1777937439000,-500.0,0.00013698,2]
[421587959,1777937439000,-500.0,0.00013698,2]
[421587955,1777937439000,-500.0,0.00013698,2]
[421587956,1777937439000,-500.0,0.00013698,2]
[421587964,1777937439000,-500.0,0.00013698,2]
[421587963,1777937439000,-500.0,0.00013698,2]
[421587958,1777937439000,-500.0,0.00013698,2]
[421587962,1777937439000,-500.0,0.00013698,2]
[421587960,1777937439000,-500.0,0.00013698,2]
[421587966,1777937439000,-500.0,0.00013698,2]
[421587965,1777937439000,-500.0,0.00013698,2]
[421587967,1777937439000,-500.0,0.00013698,2]
[421587968,1777937439000,-500.0,0.00013698,2]
[421587969,1777937439000,-500.0,0.00013698,2]
[421587973,1777937439000,-708.08,0.00013698,2]
[421587971,1777937439000,-179.0,0.00013698,2]
[421587970,1777937439000,-500.0,0.00013698,2]
[421587972,1777937439000,-179.0,0.00013698,2]
[421587976,1777937439000,-708.08,0.00013698,2]
[421587975,1777937439000,-708.08,0.00013698,2]
[421587977,1777937439000,-500.0,0.00013698,2]
[421587974,1777937439000,-708.08,0.00013698,2]
[421587978,1777937439000,-500.0,0.00013698,2]
[421587979,1777937439000,-500.0,0.00013698,2]
[421587982,1777937439000,-500.0,0.00013698,2]
[421587917,1777937439000,-606.44,0.00013698,2]
[421587952,1777937439000,-500.0,0.00013698,2]
[421587950,1777937439000,-500.0,0.00013698,2]
[421587980,1777937439000,-500.0,0.00013698,2]
[421587944,1777937439000,-500.0,0.00013698,2]
[421587921,1777937439000,-500.0,0.00013698,2]
[421587948,1777937439000,-500.0,0.00013698,2]
[421587919,1777937439000,-500.0,0.00013698,2]
[421587922,1777937439000,-500.0,0.00013698,2]
[421587924,1777937439000,-500.0,0.00013698,2]
[421587923,1777937439000,-500.0,0.00013698,2]
[421587925,1777937439000,-500.0,0.00013698,2]
[421587927,1777937439000,-509.29493377,0.00013698,2]
[421587926,1777937439000,-500.0,0.00013698,2]
[421587930,1777937439000,-994.33,0.00013698,2]
[421587929,1777937439000,-994.33,0.00013698,2]
[421587928,1777937439000,-994.33,0.00013698,2]
[421587933,1777937439000,-994.33,0.00013698,2]
[421587935,1777937439000,-500.0,0.00013698,2]
[421587936,1777937439000,-500.0,0.00013698,2]
[421587918,1777937439000,-500.0,0.00013698,2]
[421587932,1777937439000,-994.33,0.00013698,2]
[421587931,1777937439000,-994.33,0.00013698,2]
[421587949,1777937439000,-500.0,0.00013698,2]
[421587945,1777937439000,-500.0,0.00013698,2]
[421587946,1777937439000,-198.09949657,0.00013698,2]
[421587947,1777937439000,-500.0,0.00013698,2]
[421587941,1777937439000,-500.0,0.00013698,2]
[421587943,1777937439000,-500.0,0.00013698,2]
[421587942,1777937439000,-500.0,0.00013698,2]
[421587981,1777937439000,-500.0,0.00013698,2]
[421587938,1777937439000,-500.0,0.00013698,2]
[421587939,1777937439000,-500.0,0.00013698,2]
[421587937,1777937439000,-346.36483235,0.00013698,2]
[421587934,1777937439000,-994.33,0.00013698,2]
[421587940,1777937439000,-500.0,0.00013698,2]
[421588025,1777937440000,-150.0,0.00014487,2]
[421588026,1777937440000,-2901.46,0.00014504,2]
[421588024,1777937440000,-39073.61218855,0.00014427,2]
[421588022,1777937440000,-406.0,0.00014395,5]
[421588017,1777937440000,-39073.61218855,0.00014269,2]
[421588020,1777937440000,-753.27068841,0.00014386,2]
[421588018,1777937440000,-150.0,0.0001432,2]
[421588019,1777937440000,-166.85,0.00014384,2]
[421588016,1777937440000,-2893.37020641,0.00014269,2]
[421588013,1777937440000,-150.0,0.00014251,2]
[421588021,1777937440000,-364.0,0.00014395,5]
[421588023,1777937440000,-2893.37020641,0.00014427,2]
[421588036,1777937440000,-193.256037,0.000147,2]
[421588029,1777937440000,-39073.61218855,0.00014585,2]
[421588030,1777937440000,-2000.0,0.00014603,2]
[421588031,1777937440000,-150.0,0.00014612,2]
[421588032,1777937440000,-207.0,0.00014615,2]
[421588034,1777937440000,-150.0,0.00014653,2]
[421588033,1777937440000,-3131.82,0.0001463,2]
[421588035,1777937440000,-1802.19451999,0.000147,2]
[421588039,1777937440000,-225.06057,0.000147,2]
[421588038,1777937440000,-396.203116,0.000147,2]
[421588037,1777937440000,-165.851682,0.000147,2]
[421588041,1777937440000,-225.06057,0.000147,2]
[421588040,1777937440000,-213.181707,0.000147,2]
[421588008,1777937440000,-150.0,0.00014237,2]
[421588043,1777937440000,-355.211019,0.000147,2]
[421588028,1777937440000,-2893.37020641,0.00014585,2]
[421588006,1777937440000,-1000.0,0.00014221,2]
[421587998,1777937440000,-255.0,0.0001401,2]
[421588012,1777937440000,-150.0,0.00014251,2]
[421588044,1777937440000,-225.06057,0.000147,2]
[421587983,1777937440000,-166.85,0.00013699,2]
[421587985,1777937440000,-2893.37020641,0.00013796,2]
[421587988,1777937440000,-3404.16,0.00013831,2]
[421587984,1777937440000,-5006.71,0.00013699,2]
[421587990,1777937440000,-156.16761773,0.00013842,2]
[421587987,1777937440000,-150.0,0.00013821,2]
[421587989,1777937440000,-1680.0,0.00013834,2]
[421587986,1777937440000,-39073.61218855,0.00013796,2]
[421587992,1777937440000,-2893.37020641,0.00013954,2]
[421587991,1777937440000,-150.0,0.00013862,2]
[421587993,1777937440000,-39073.61218855,0.00013954,2]
[421587995,1777937440000,-150.0,0.00013987,2]
[421588011,1777937440000,-788.19,0.00014243,2]
[421587994,1777937440000,-788.19,0.00013969,2]
[421587996,1777937440000,-34074.56741536,0.0001399,2]
[421587997,1777937440000,-250.0,0.00014,2]
[421588002,1777937440000,-2893.37020641,0.00014112,2]
[421587999,1777937440000,-166.85,0.00014041,2]
[421588001,1777937440000,-420.0,0.0001411,2]
[421588004,1777937440000,-3404.16,0.00014152,2]
[421588005,1777937440000,-150.0,0.00014154,2]
[421588003,1777937440000,-39073.61218855,0.00014112,2]
[421588015,1777937440000,-350.0,0.00014267,2]
[421588007,1777937440000,-150.0,0.00014237,2]
[421588009,1777937440000,-150.0,0.00014237,2]
[421588014,1777937440000,-159.53124321,0.00014251,2]
[421588010,1777937440000,-150.0,0.00014237,2]
[421588000,1777937440000,-970.64,0.00014066,2]
[421588045,1777937440000,-355.211019,0.000147,2]
[421588027,1777937440000,-793.0,0.00014517,2]
[421588046,1777937440000,-175.01664,0.000147,2]
[421588081,1777937440000,-1535.0,0.00014939,2]
[421588082,1777937440000,-1535.0,0.00014939,2]
[421588080,1777937440000,-151.0,0.00014939,2]
[421588083,1777937440000,-151.0,0.00014939,2]
[421588088,1777937440000,-1535.0,0.00014939,2]
[421588086,1777937440000,-1535.0,0.00014939,2]
[421588089,1777937440000,-1535.0,0.00014939,2]
[421588087,1777937440000,-1535.0,0.00014939,2]
[421588042,1777937440000,-225.06057,0.000147,2]
[421588085,1777937440000,-159.0,0.00014939,2]
[421588090,1777937440000,-1535.0,0.00014939,2]
[421588092,1777937440000,-1535.0,0.00014939,2]
[421588091,1777937440000,-1535.0,0.00014939,2]
[421588079,1777937440000,-1535.0,0.00014939,2]
[421588104,1777937440000,-1535.0,0.00014939,2]
[421588095,1777937440000,-1535.0,0.00014939,2]
[421588096,1777937440000,-1535.0,0.00014939,2]
[421588094,1777937440000,-1535.0,0.00014939,2]
[421588099,1777937440000,-1535.0,0.00014939,2]
[421588097,1777937440000,-1535.0,0.00014939,2]
[421588102,1777937440000,-1535.0,0.00014939,2]